bitfinex/quotes_SOLUSD_20230401
["timestamp","ask_amount","ask_price","bid_price","bid_amount"]
[1680309044149,10.0,21.278,21.265,17.0]
[1680309052974,10.0,21.278,21.264,10.0]
[1680309053160,10.0,21.273,21.262,10.0]
[1680309053859,10.0,21.273,21.26,10.0]
[1680309054162,10.0,21.273,21.259,20.0]
[1680309056463,10.0,21.273,21.255,33.523]
[1680309056674,52.38,21.27,21.252,570.99036715]
[1680309056878,37.0,21.269,21.252,174.69036715]
[1680309057569,10.0,21.268,21.252,174.69036715]
[1680309058584,10.0,21.268,21.254,10.0]
[1680309064173,17.0,21.267,21.254,10.0]
[1680309064387,10.0,21.266,21.254,10.0]
[1680309065382,10.0,21.266,21.253,10.0]
[1680309071784,17.0,21.267,21.253,10.0]
[1680309073379,20.0,21.269,21.253,10.0]
[1680309073688,20.0,21.269,21.254,17.0]
[1680309073899,20.0,21.269,21.255,10.0]
[1680309074282,10.0,21.268,21.255,10.0]
[1680309081306,17.0,21.267,21.252,10.0]
[1680309081600,26.19,21.26,21.245,53.05073198]
[1680309081794,10.0,21.259,21.245,53.05073198]
[1680309081995,10.0,21.259,21.244,10.0]
[1680309092124,10.0,21.259,21.243,10.0]
[1680309092284,17.0,21.258,21.241,101.3029]
[1680309092484,10.0,21.257,21.242,10.0]
[1680309092699,17.0,21.256,21.242,10.0]
[1680309093095,10.0,21.255,21.242,10.0]
[1680309096310,10.0,21.253,21.242,10.0]
[1680309098493,10.0,21.253,21.237,10.0]
[1680309098494,10.0,21.249,21.237,10.0]
[1680309099004,26.41,21.25,21.237,10.0]
[1680309099213,114.1413,21.252,21.239,17.0]
[1680309099400,114.1413,21.252,21.24,10.0]
[1680309101594,10.0,21.249,21.24,10.0]
[1680309102201,26.41,21.25,21.24,10.0]
[1680309102405,20.0,21.249,21.24,10.0]
[1680309102706,52.72,21.26,21.24,10.0]
[1680309102914,52.72,21.26,21.241,17.0]
[1680309103094,10.0,21.257,21.242,10.0]
[1680309103298,10.0,21.257,21.243,17.0]
[1680309103495,26.31,21.26,21.243,17.0]
[1680309103698,10.0,21.264,21.243,17.0]
[1680309103894,18.832918,21.265,21.243,24.07101808]
[1680309104198,20.0,21.262,21.245,23.534]
[1680309104401,20.0,21.262,21.246,17.0]
[1680309105000,20.0,21.262,21.247,10.0]
[1680309105215,20.0,21.262,21.248,17.0]
[1680309105795,18.832918,21.265,21.249,10.0]
[1680309106002,28.832918,21.265,21.251,10.0]
[1680309106400,28.832918,21.265,21.253,10.0]
[1680309107013,10.0,21.264,21.253,10.0]
[1680309108402,10.0,21.264,21.251,10.0]
[1680309108609,10.0,21.264,21.249,10.0]
[1680309108801,10.0,21.264,21.247,10.0]
[1680309108802,17.0,21.263,21.247,10.0]
[1680309109008,10.0,21.262,21.248,20.0]
[1680309109208,26.19,21.26,21.247,10.0]
[1680309109412,20.0,21.259,21.247,10.0]
[1680309109613,27.0,21.258,21.247,10.0]
[1680309110004,10.0,21.257,21.247,10.0]
[1680309116516,17.0,21.256,21.24,10.0]
[1680309116717,26.41,21.25,21.238,10.0]
[1680309116916,10.0,21.249,21.24,10.0]
[1680309117320,10.0,21.249,21.238,10.0]
[1680309121232,26.41,21.25,21.238,10.0]
[1680309121434,20.0,21.249,21.238,10.0]
[1680309121933,109.0013,21.252,21.238,10.0]
[1680309122119,10.0,21.25,21.238,10.0]
[1680309122318,20.0,21.249,21.238,10.0]
[1680309130939,20.0,21.251,21.238,10.0]
[1680309131134,10.0,21.25,21.238,10.0]
[1680309131436,20.0,21.249,21.238,10.0]
[1680309132926,20.0,21.249,21.236,10.0]
[1680309133132,10.0,21.248,21.236,10.0]
[1680309135026,10.0,21.248,21.233,10.0]
[1680309135242,10.0,21.246,21.233,10.0]
[1680309136241,10.0,21.248,21.234,17.0]
[1680309136442,10.0,21.248,21.235,10.0]
[1680309138440,10.0,21.248,21.236,17.0]
[1680309138641,10.0,21.248,21.237,10.0]
[1680309140246,10.0,21.248,21.235,10.0]
[1680309140449,10.0,21.246,21.235,10.0]
[1680309148544,10.0,21.246,21.231,10.0]
[1680309148745,10.0,21.244,21.231,10.0]
[1680309148947,17.0,21.243,21.231,10.0]
[1680309153058,17.0,21.243,21.231,10.0]
[1680309158259,142.3109,21.249,21.231,10.0]
[1680309158461,17.0,21.245,21.231,10.0]
[1680309158757,10.0,21.247,21.231,10.0]
[1680309159157,17.0,21.246,21.231,10.0]
[1680309159356,10.0,21.245,21.231,10.0]
[1680309159545,17.0,21.244,21.231,10.0]
[1680309160356,17.0,21.246,21.231,10.0]
[1680309165364,10.0,21.245,21.231,10.0]
[1680309166460,17.0,21.244,21.23,37.48646779]
[1680309166656,10.0,21.243,21.23,37.48646779]
[1680309166967,17.0,21.242,21.23,37.48646779]
[1680309168866,10.0,21.241,21.23,37.48646779]
[1680309169072,17.0,21.24,21.23,37.48646779]
[1680309169264,10.0,21.239,21.23,37.48646779]
[1680309170158,43.41,21.24,21.23,37.48646779]
[1680309171069,10.0,21.239,21.23,37.48646779]
[1680309171667,10.0,21.239,21.22,37.486468]
[1680309171872,17.0,21.238,21.22,37.486468]
[1680309172175,17.0,21.238,21.221,10.0]
[1680309172374,10.0,21.237,21.221,10.0]
[1680309172571,17.0,21.236,21.221,10.0]
[1680309172875,10.0,21.235,21.221,10.0]
[1680309173168,10.0,21.233,21.221,10.0]
[1680309173374,16.88035371,21.232,21.22,37.486468]
[1680309173871,16.88035371,21.232,21.221,10.0]
[1680309179582,16.88035371,21.232,21.22,10.0]
[1680309179784,10.0,21.231,21.22,10.0]
[1680309179984,17.0,21.23,21.22,10.0]
[1680309185282,17.0,21.23,21.22,9.5]
[1680309185586,10.0,21.229,21.22,9.5]
[1680309189895,10.0,21.227,21.219,38.30170132]
[1680309190282,17.0,21.226,21.219,38.30170132]
[1680309192783,17.0,21.228,21.219,38.30170132]
[1680309195098,17.0,21.229,21.22,10.0]
[1680309197497,152.60188326,21.23,21.22,10.0]
[1680309197699,111.8178,21.23,21.22,10.0]
[1680309198184,10.0,21.238,21.22,10.0]
[1680309199290,10.0,21.233,21.22,10.0]
[1680309200783,10.0,21.231,21.22,10.0]
[1680309205304,17.0,21.232,21.22,10.0]
[1680309205690,10.0,21.238,21.22,10.0]
[1680309205998,10.0,21.238,21.221,17.0]
[1680309206600,10.0,21.238,21.222,10.0]
[1680309215903,10.0,21.239,21.222,10.0]
[1680309220207,36.31,21.24,21.222,10.0]
[1680309222911,10.0,21.239,21.222,10.0]
[1680309224317,17.0,21.233,21.222,10.0]
[1680309225103,10.0,21.232,21.221,10.0]
[1680309225303,17.0,21.231,21.221,10.0]
[1680309225921,10.0,21.232,21.221,10.0]
[1680309226109,10.0,21.23,21.221,10.0]
[1680309227415,17.0,21.231,21.221,10.0]
[1680309228618,10.0,21.23,21.22,38.29989634]
[1680309228808,17.0,21.229,21.22,38.29989634]
[1680309229316,10.0,21.228,21.22,38.29989634]
[1680309229510,10.0,21.226,21.22,38.29989634]
[1680309234415,10.0,21.228,21.22,38.29989634]
[1680309234610,10.0,21.226,21.22,38.29989634]
[1680309235015,10.0,21.228,21.22,38.29989634]
[1680309235323,36.41,21.23,21.22,38.29989634]
[1680309235516,20.0,21.229,21.22,38.29989634]
[1680309237225,10.0,21.227,21.22,38.29989634]
[1680309237622,20.0,21.229,21.22,38.29989634]
[1680309241119,26.41,21.23,21.22,38.29989634]
[1680309241325,10.0,21.239,21.221,17.0]
[1680309241529,10.0,21.239,21.222,10.0]
[1680309242617,10.0,21.233,21.222,10.0]
[1680309253439,17.0,21.232,21.222,10.0]
[1680309253745,10.0,21.231,21.222,10.0]
[1680309253939,17.0,21.23,21.222,10.0]
[1680309254125,10.0,21.229,21.22,38.29989634]
[1680309254443,17.0,21.228,21.22,38.29989634]
[1680309254743,10.0,21.227,21.22,38.29989634]
[1680309254942,17.0,21.226,21.22,38.29989634]
[1680309258439,10.0,21.229,21.22,38.29989634]
[1680309258741,17.0,21.228,21.22,38.29989634]
[1680309265035,17.0,21.228,21.213,10.0]
[1680309265239,10.0,21.227,21.213,10.0]
[1680309265541,17.0,21.226,21.213,10.0]
[1680309265839,10.0,21.225,21.213,10.0]
[1680309266036,17.0,21.224,21.213,10.0]
[1680309266349,10.0,21.223,21.213,10.0]
[1680309266539,17.0,21.222,21.213,10.0]
[1680309269154,10.0,21.225,21.213,10.0]
[1680309269348,17.0,21.224,21.213,10.0]
[1680309273750,10.0,21.225,21.213,10.0]
[1680309273952,17.0,21.224,21.213,10.0]
[1680309289775,118.3171,21.226,21.213,10.0]
[1680309291381,17.0,21.225,21.213,10.0]
[1680309291678,10.0,21.224,21.213,10.0]
[1680309295066,27.0,21.225,21.213,10.0]
[1680309295966,17.0,21.225,21.213,10.0]
[1680309296773,118.3171,21.226,21.213,10.0]
[1680309296965,17.0,21.225,21.213,10.0]
[1680309297164,10.0,21.224,21.213,10.0]
[1680309300680,17.0,21.225,21.213,10.0]
[1680309302483,27.0,21.225,21.213,10.0]
[1680309309189,17.0,21.225,21.213,10.0]
[1680309313374,118.3171,21.226,21.213,10.0]
[1680309319695,10.0,21.224,21.212,10.0]
[1680309319877,10.0,21.222,21.21,48.31795381]
[1680309320191,10.0,21.219,21.21,48.31795381]
[1680309320589,21.02,21.22,21.21,48.31795381]
[1680309320796,118.3171,21.226,21.21,48.31795381]
[1680309321089,27.0,21.225,21.21,48.31795381]
[1680309321890,17.0,21.225,21.21,48.31795381]
[1680309322087,118.3171,21.226,21.21,48.31795381]
[1680309322290,118.3171,21.226,21.212,10.0]
[1680309330403,10.0,21.225,21.212,10.0]
[1680309344408,17.0,21.224,21.211,10.0]
[1680309344611,17.0,21.224,21.21,48.31795381]
[1680309344800,17.0,21.224,21.21,38.31795381]
[1680309344995,26.44,21.22,21.21,38.31795381]
[1680309345196,17.0,21.219,21.21,38.31795381]
[1680309345395,10.0,21.218,21.211,34.7628958]
[1680309345597,10.0,21.216,21.211,34.7628958]
[1680309345797,17.0,21.215,21.211,34.7628958]
[1680309360228,10.0,21.214,21.211,34.7628958]
[1680309360519,17.0,21.213,21.211,34.7628958]
[1680309362412,17.0,21.215,21.211,34.7628958]
[1680309365320,14.45181188,21.216,21.211,34.7628958]
[1680309365520,10.0,21.218,21.211,34.7628958]
[1680309366320,24.30057115,21.218,21.211,34.7628958]
[1680309366520,10.0,21.218,21.211,34.7628958]
[1680309366722,17.0,21.217,21.211,34.7628958]
[1680309367029,10.0,21.216,21.211,34.7628958]
[1680309367229,10.0,21.214,21.211,34.7628958]
[1680309367612,17.0,21.213,21.211,34.7628958]
[1680309372532,17.0,21.215,21.211,34.7628958]
[1680309378443,17.0,21.217,21.211,34.7628958]
[1680309378659,17.0,21.218,21.211,34.7628958]
[1680309384763,10.0,21.217,21.211,34.7628958]
[1680309384950,17.0,21.216,21.211,34.7628958]
[1680309392060,17.0,21.218,21.211,34.7628958]
[1680309395954,13.78882173,21.219,21.211,34.7628958]
[1680309396162,21.17,21.22,21.211,34.7628958]
[1680309396360,20.0,21.219,21.212,10.0]
[1680309397162,20.0,21.219,21.215,34.7563414]
[1680309397358,17.0,21.218,21.215,34.7563414]
[1680309414986,20.0,21.219,21.215,34.7563414]
[1680309415172,17.0,21.218,21.215,34.7563414]
[1680309415888,20.0,21.219,21.215,34.7563414]
[1680309416492,10.0,21.228,21.216,10.0]
[1680309416678,20.0,21.227,21.216,10.0]
[1680309416880,10.0,21.228,21.216,10.0]
[1680309417279,17.0,21.227,21.216,10.0]
[1680309426795,50.40364101,21.23,21.216,10.0]
[1680309426997,20.0,21.229,21.216,10.0]
[1680309428400,17.0,21.228,21.216,10.0]
[1680309433511,20.0,21.229,21.216,10.0]
[1680309434109,20.0,21.23,21.217,17.0]
[1680309434308,20.0,21.23,21.218,10.0]
[1680309434497,20.0,21.233,21.218,10.0]
[1680309435621,17.0,21.232,21.218,10.0]
[1680309435797,20.0,21.231,21.218,10.0]
[1680309440906,139.9985,21.238,21.22,26.44]
[1680309441211,117.2523,21.241,21.221,10.0]
[1680309441402,30.0,21.24,21.222,51.74487715]
[1680309441608,20.0,21.24,21.223,34.74324001]
[1680309441912,20.0,21.24,21.224,17.0]
[1680309442106,20.0,21.24,21.226,10.0]
[1680309442305,20.0,21.24,21.227,34.73669302]
[1680309442505,20.0,21.24,21.228,10.0]
[1680309442716,20.0,21.24,21.229,34.73342045]
[1680309442922,20.0,21.24,21.23,10.0]
[1680309443402,30.0,21.24,21.23,10.0]
[1680309444023,20.0,21.24,21.23,10.0]
[1680309444919,30.0,21.24,21.23,10.0]
[1680309445707,10.0,21.239,21.23,10.0]
[1680309446321,18.858564,21.235,21.23,10.0]
[1680309446521,18.858564,21.235,21.228,10.0]
[1680309455525,10.0,21.239,21.228,10.0]
[1680309457434,10.0,21.239,21.227,34.73669302]
[1680309457727,17.0,21.238,21.227,34.73669302]
[1680309458027,10.0,21.237,21.227,34.73669302]
[1680309464826,17.0,21.236,21.227,34.73669302]
[1680309465035,10.0,21.235,21.227,34.73669302]
[1680309467724,10.0,21.233,21.227,34.73669302]
[1680309477227,10.0,21.235,21.227,34.73669302]
[1680309477442,17.0,21.234,21.227,34.73669302]
[1680309486643,17.0,21.236,21.227,34.73669302]
[1680309491437,10.0,21.237,21.227,34.73669302]
[1680309492051,51.14,21.24,21.227,34.73669302]
[1680309492359,10.0,21.237,21.227,34.73669302]
[1680309492852,51.14,21.24,21.228,10.0]
[1680309494858,41.14,21.24,21.228,10.0]
[1680309504363,41.14,21.24,21.229,17.0]
[1680309504560,20.0,21.24,21.23,10.0]
[1680309504874,20.0,21.239,21.23,10.0]
[1680309506867,20.0,21.24,21.23,10.0]
[1680309508360,20.0,21.241,21.23,10.0]
[1680309509763,21.02,21.24,21.23,10.0]
[1680309509966,20.0,21.239,21.23,10.0]
[1680309512969,20.0,21.239,21.23,9.9066552]
[1680309513551,10.0,21.244,21.23,9.9066552]
[1680309513552,114.7476,21.249,21.23,9.9066552]
[1680309513755,10.0,21.248,21.231,17.0]
[1680309513954,33.32598155,21.248,21.231,17.0]
[1680309514369,33.32598155,21.248,21.232,10.0]
[1680309514565,33.32598155,21.248,21.234,10.0]
[1680309514870,33.32598155,21.248,21.236,10.0]
[1680309516062,43.02500472,21.247,21.236,10.0]
[1680309516265,28.849425,21.247,21.236,10.0]
[1680309517466,18.849425,21.247,21.236,10.0]
[1680309521368,18.849425,21.247,21.237,17.0]
[1680309521571,18.849425,21.247,21.238,44.71870577]
[1680309523385,21.14,21.25,21.238,44.71870577]
[1680309523569,20.0,21.249,21.238,44.71870577]
[1680309525570,27.9790704,21.26,21.239,17.0]
[1680309525775,21.02,21.26,21.239,17.0]
[1680309526171,10.0,21.254,21.24,10.0]
[1680309526365,10.0,21.254,21.241,17.0]
[1680309526678,10.0,21.254,21.242,10.0]
[1680309527177,14.36810961,21.258,21.242,10.0]
[1680309527766,10.0,21.254,21.242,10.0]
[1680309530384,21.14,21.252,21.242,10.0]
[1680309544387,10.0,21.254,21.242,10.0]
[1680309549590,10.0,21.254,21.238,34.71870577]
[1680309549798,26.37,21.25,21.238,34.71870577]
[1680309550090,47.0,21.249,21.238,34.71870577]
[1680309561295,20.0,21.249,21.239,10.0]
[1680309562600,20.0,21.249,21.24,17.0]
[1680309562903,20.0,21.248,21.241,10.0]
[1680309563105,20.0,21.251,21.241,10.0]
[1680309568594,10.0,21.25,21.241,10.0]
[1680309568795,10.0,21.248,21.241,10.0]
[1680309569508,10.0,21.248,21.239,10.0]
[1680309569900,36.37,21.25,21.239,10.0]
[1680309570101,20.0,21.249,21.239,10.0]
[1680309576304,20.0,21.249,21.238,34.71870577]
[1680309576503,19.5,21.249,21.238,34.71870577]
[1680309576804,10.0,21.248,21.239,10.0]
[1680309579718,19.5,21.249,21.239,10.0]
[1680309585323,19.5,21.249,21.238,34.71870577]
[1680309585520,10.0,21.247,21.238,34.71870577]
[1680309592128,10.0,21.245,21.238,34.71870577]
[1680309592432,10.0,21.243,21.238,34.71870577]
[1680309592829,10.0,21.241,21.238,34.71870577]
[1680309593134,10.0,21.239,21.238,34.71870577]
[1680309593326,30.0,21.239,21.238,34.71870577]
[1680309594211,20.0,21.239,21.238,34.71870577]
[1680309600640,20.0,21.239,21.227,10.0]
[1680309600830,20.0,21.242,21.228,51.73506092]
[1680309601032,20.0,21.242,21.23,10.0]
[1680309601337,20.0,21.242,21.232,10.0]
[1680309601519,20.0,21.242,21.233,34.72688142]
[1680309601724,20.0,21.242,21.234,10.0]
[1680309601925,20.0,21.242,21.235,34.7236107]
[1680309602240,20.0,21.242,21.236,10.0]
[1680309602425,20.0,21.242,21.237,34.72034059]
[1680309603943,20.0,21.244,21.237,34.72034059]
[1680309619779,10.0,21.243,21.237,34.72034059]
[1680309619986,20.0,21.242,21.237,34.72034059]
[1680309624277,23.539,21.241,21.237,34.72034059]
[1680309624481,20.0,21.24,21.237,34.72034059]
[1680309625390,20.0,21.242,21.237,34.72034059]
[1680309632698,10.0,21.241,21.237,34.72034059]
[1680309632882,10.0,21.239,21.237,34.72034059]
[1680309633198,20.0,21.238,21.237,34.72034059]
[1680309633997,20.0,21.238,21.23,116.8473]
[1680309634982,10.0,21.237,21.23,116.8473]
[1680309636598,10.0,21.237,21.22,129.1224]
[1680309636806,23.547,21.235,21.22,129.1224]
[1680309637101,23.547,21.235,21.22,10.0]
[1680309637303,10.0,21.234,21.22,10.0]
[1680309641408,10.0,21.234,21.22,10.0]
[1680309646612,26.37,21.23,21.219,117.75]
[1680309646794,10.0,21.228,21.219,117.75]
[1680309656226,10.0,21.228,21.215,13.77972685]
[1680309656429,10.0,21.228,21.208,114.8804]
[1680309656430,17.0,21.227,21.208,114.8804]
[1680309656611,17.0,21.227,21.209,108.1287]
[1680309656819,17.0,21.227,21.21,10.0]
[1680309657331,10.0,21.226,21.21,10.0]
[1680309657521,17.0,21.225,21.21,10.0]
[1680309657727,10.0,21.219,21.208,114.8804]
[1680309658037,20.0,21.218,21.208,114.8804]
[1680309660727,10.0,21.217,21.208,114.8804]
[1680309662535,10.0,21.217,21.204,28.858635]
[1680309662536,10.0,21.217,21.204,18.858635]
[1680309662739,10.0,21.209,21.204,18.858635]
[1680309663034,20.0,21.208,21.204,18.858635]
[1680309667145,20.0,21.209,21.204,18.858635]
[1680309670644,10.0,21.208,21.204,18.858635]
[1680309670842,17.0,21.207,21.204,18.858635]
[1680309671429,10.0,21.206,21.189,10.0]
[1680309676448,10.0,21.204,21.189,10.0]
[1680309676849,10.0,21.202,21.189,10.0]
[1680309680963,10.0,21.202,21.188,13.96186911]
[1680309681151,10.0,21.202,21.187,10.0]
[1680309681152,10.0,21.199,21.187,10.0]
[1680309681354,20.0,21.198,21.187,10.0]
[1680309683350,17.0,21.197,21.186,116.0282]
[1680309683554,10.0,21.196,21.186,116.0282]
[1680309683758,17.0,21.195,21.186,116.0282]
[1680309683968,10.0,21.194,21.186,116.0282]
[1680309685561,10.0,21.196,21.186,116.0282]
[1680309685764,10.0,21.196,21.187,10.0]
[1680309685960,17.0,21.195,21.187,10.0]
[1680309686857,17.0,21.195,21.186,116.0282]
[1680309692667,10.0,21.194,21.186,116.0282]
[1680309694579,10.0,21.194,21.184,14.46739445]
[1680309694879,10.0,21.192,21.181,10.0]
[1680309696283,10.0,21.192,21.181,24.41224452]
[1680309696587,10.0,21.192,21.181,10.0]
[1680309697085,26.37,21.19,21.181,10.0]
[1680309697277,10.0,21.189,21.18,18.879303]
[1680309697593,20.0,21.188,21.18,18.879303]
[1680309698594,20.0,21.188,21.177,10.0]
[1680309701169,20.0,21.188,21.176,10.0]
[1680309701375,27.0,21.187,21.175,114.0458]
[1680309702996,20.0,21.186,21.166,10.0]
[1680309703195,26.37,21.18,21.166,10.0]
[1680309703376,30.0,21.179,21.166,10.0]
[1680309703893,17.0,21.178,21.165,10.0]
[1680309704281,10.0,21.177,21.164,117.8747]
[1680309706178,10.0,21.177,21.165,10.0]
[1680309709090,10.0,21.177,21.166,18.892374]
[1680309709681,17.0,21.176,21.166,18.892374]
[1680309710079,10.0,21.175,21.166,18.892374]
[1680309710278,10.0,21.177,21.166,18.892374]
[1680309710485,10.0,21.178,21.166,18.892374]
[1680309710884,30.0,21.179,21.166,18.892374]
[1680309711085,20.0,21.179,21.167,10.0]
[1680309711995,10.0,21.178,21.167,10.0]
[1680309715499,30.0,21.179,21.167,10.0]
[1680309715685,30.0,21.179,21.166,18.892374]
[1680309715888,17.0,21.178,21.166,18.892374]
[1680309716184,10.0,21.177,21.166,18.892374]
[1680309716384,17.0,21.176,21.166,18.892374]
[1680309716586,10.0,21.175,21.166,18.892374]
[1680309717188,10.0,21.173,21.166,18.892374]
[1680309717384,10.0,21.175,21.166,18.892374]
[1680309719003,17.0,21.176,21.167,10.0]
[1680309719297,57.19,21.191,21.167,10.0]
[1680309720097,10.0,21.176,21.166,18.892374]
[1680309720689,17.0,21.175,21.166,18.892374]
[1680309720883,10.0,21.174,21.166,18.892374]
[1680309721589,17.0,21.173,21.166,18.892374]
[1680309721996,10.0,21.172,21.166,18.892374]
[1680309722201,17.0,21.171,21.166,18.892374]
[1680309722583,10.0,21.17,21.166,18.892374]
[1680309722783,17.0,21.169,21.166,18.892374]
[1680309723084,20.0,21.168,21.166,18.892374]
[1680309724191,20.0,21.168,21.155,109.6946]
[1680309724392,20.0,21.168,21.154,24.0567001]
[1680309724393,20.0,21.168,21.154,10.0]
[1680309724626,10.0,21.167,21.154,10.0]
[1680309726407,17.0,21.166,21.154,10.0]
[1680309726902,10.0,21.165,21.154,10.0]
[1680309727602,10.0,21.165,21.153,112.7486]
[1680309727810,17.0,21.164,21.153,112.7486]
[1680309728011,10.0,21.163,21.153,112.7486]
[1680309728803,10.0,21.161,21.153,112.7486]
[1680309729200,10.0,21.161,21.152,34.49873229]
[1680309729498,37.0,21.16,21.146,119.9657]
[1680309729704,37.0,21.16,21.14,49.931]
[1680309729891,10.0,21.159,21.143,10.0]
[1680309730093,20.0,21.158,21.143,10.0]
[1680309730492,10.0,21.157,21.143,10.0]
[1680309730911,17.0,21.156,21.143,10.0]
[1680309732820,10.0,21.157,21.143,10.0]
[1680309733112,43.632,21.158,21.143,10.0]
[1680309733113,20.0,21.158,21.143,10.0]
[1680309733607,20.0,21.158,21.144,17.0]
[1680309734000,20.0,21.158,21.145,10.0]
[1680309734201,20.0,21.159,21.145,10.0]
[1680309735005,10.0,21.158,21.145,10.0]
[1680309736310,17.0,21.157,21.145,10.0]
[1680309736810,10.0,21.156,21.145,9.5]
[1680309737697,10.0,21.156,21.143,10.0]
[1680309738095,10.0,21.156,21.145,18.909152]
[1680309739399,37.0,21.155,21.145,18.909152]
[1680309739594,10.0,21.154,21.145,18.409152]
[1680309739793,17.0,21.153,21.145,18.409152]
[1680309739990,10.0,21.151,21.145,18.409152]
[1680309740194,20.0,21.15,21.145,18.409152]
[1680309743016,10.0,21.148,21.145,18.409152]
[1680309743812,17.0,21.147,21.145,18.409152]
[1680309744816,17.0,21.149,21.145,18.409152]
[1680309745025,20.0,21.15,21.145,18.409152]
[1680309745199,20.0,21.152,21.145,18.409152]
[1680309745402,10.0,21.15,21.145,18.409152]
[1680309745606,17.0,21.149,21.145,18.409152]
[1680309746502,17.0,21.151,21.145,18.409152]
[1680309746812,20.0,21.15,21.145,18.409152]
[1680309747010,20.0,21.152,21.145,18.409152]
[1680309748518,17.0,21.151,21.145,18.409152]
[1680309748721,10.0,21.15,21.145,18.409152]
[1680309748919,17.0,21.149,21.145,18.409152]
[1680309749214,17.0,21.149,21.14,26.28]
[1680309749410,10.0,21.148,21.14,26.28]
[1680309749718,10.0,21.146,21.14,26.28]
[1680309750214,10.0,21.15,21.14,26.28]
[1680309751720,10.0,21.148,21.14,26.28]
[1680309752300,17.0,21.147,21.14,26.28]
[1680309752509,23.646,21.145,21.14,26.28]
[1680309752704,10.0,21.143,21.14,26.28]
[1680309753024,10.0,21.141,21.14,21.0438]
[1680309753207,30.0,21.141,21.14,21.0438]
[1680309753407,47.0,21.141,21.14,21.0438]
[1680309754208,47.0,21.141,21.127,10.0]
[1680309754526,165.7281,21.14,21.126,36.60673707]
[1680309754723,10.0,21.139,21.126,36.60673707]
[1680309755033,17.0,21.138,21.126,36.60673707]
[1680309755611,10.0,21.137,21.126,36.60673707]
[1680309755811,17.0,21.136,21.126,36.60673707]
[1680309756024,10.0,21.135,21.126,36.60673707]
[1680309758317,17.0,21.134,21.126,36.60673707]
[1680309759034,10.0,21.137,21.126,36.60673707]
[1680309759331,17.0,21.136,21.127,10.0]
[1680309759626,17.0,21.136,21.126,36.60673707]
[1680309759627,10.0,21.135,21.126,36.60673707]
[1680309759827,17.0,21.134,21.126,36.60673707]